fUSD/lending_fUSD_20260202
["ID","MTS","AMOUNT","RATE_DAILY","PERIOD"]
[404309805,1770054182708,-610.38473392,0.00011215,2]
[404309806,1770054182740,-610.38473392,0.00011215,2]
[404309807,1770054182769,-610.38473392,0.00011215,2]
[404309808,1770054182802,-610.38473392,0.00011215,2]
[404309809,1770054182836,-610.38473392,0.00011215,2]
[404309810,1770054182866,-610.38473392,0.00011215,2]
[404309811,1770054182896,-610.38473392,0.00011215,2]
[404309812,1770054182927,-40.0335742,0.00011215,2]
[404309813,1770054183025,-570.35115972,0.00011215,2]
[404309814,1770054183060,-610.38473392,0.00011215,2]
[404309815,1770054183091,-610.38473392,0.00011215,2]
[404309816,1770054183122,-610.38473392,0.00011215,2]
[404309817,1770054183152,-610.38473392,0.00011215,2]
[404309818,1770054183185,-610.38473392,0.00011215,2]
[404309819,1770054183220,-610.38473392,0.00011215,2]
[404309820,1770054183258,-610.38473392,0.00011215,2]
[404309821,1770054199812,5531.0,0.000127,5]
[404309822,1770054212508,324.92,0.00010499,2]
[404309823,1770054212732,324.92,0.00011082,2]
[404309827,1770054231872,5531.0,0.000127,5]
[404309828,1770054241159,9350.17,0.00011116,2]
[404309829,1770054241198,10000.01,0.00011116,2]
[404309830,1770054241228,10000.01,0.00011116,2]
[404309831,1770054241256,10000.01,0.00011116,2]
[404309832,1770054241283,10000.01,0.00011116,2]
[404309833,1770054241309,10000.01,0.00011116,2]
[404309834,1770054241336,10000.01,0.00011116,2]
[404309835,1770054241362,10000.01,0.00011116,2]
[404309836,1770054241389,5000.01,0.00011116,2]
[404309837,1770054241413,5000.01,0.00011116,2]
[404309838,1770054241437,5000.01,0.00011116,2]
[404309839,1770054241461,5000.01,0.00011116,2]
[404309840,1770054241486,5000.01,0.00011116,2]
[404309841,1770054241510,5000.01,0.00011116,2]
[404309842,1770054241535,5000.01,0.00011116,2]
[404309843,1770054241560,5000.01,0.00011116,2]
[404309844,1770054241584,5000.01,0.00011116,2]
[404309845,1770054241609,5000.01,0.00011116,2]
[404309846,1770054241643,10000.01,0.00011116,2]
[404309847,1770054241673,10000.01,0.00011116,2]
[404309848,1770054242110,-2685.85822154,0.00011116,2]
[404309849,1770054245306,-322.28350113,0.00011116,2]
[404309850,1770054247386,-173.49272529,0.00011116,2]
[404309851,1770054249446,-1061.64190853,0.00011116,2]
[404309852,1770054252113,-690.28032245,0.00011116,2]
[404309853,1770054253146,151.0,0.00011113,2]
[404309854,1770054254257,-990.72666353,0.00011116,2]
[404309855,1770054255648,-577.1821567,0.00011116,2]
[404309856,1770054257187,-417.72240687,0.00011116,2]
[404309857,1770054260358,-500.00000017,0.00011116,2]
[404309858,1770054261884,-1911.74535456,0.00011116,2]
[404309859,1770054263492,5531.0,0.000127,5]
[404309860,1770054264163,-252.76591589,0.00011116,2]
[404309861,1770054267450,-208.89990376,0.00011116,2]
[404309862,1770054268992,9849.01,0.00010427,2]
[404309863,1770054269014,10000.01,0.00010427,2]
[404309864,1770054269040,10000.01,0.00010427,2]
[404309865,1770054269062,10000.01,0.00010427,2]
[404309866,1770054269084,10000.01,0.00010427,2]
[404309867,1770054269106,10000.01,0.00010427,2]
[404309868,1770054269128,10000.01,0.00010427,2]
[404309869,1770054269150,10000.01,0.00010427,2]
[404309870,1770054269171,10000.01,0.00010427,2]
[404309871,1770054269194,10000.01,0.00010427,2]
[404309872,1770054269217,6114.82355856,0.00010427,2]
[404309873,1770054269241,6114.82355856,0.00010427,2]
[404309874,1770054269262,6114.82355856,0.00010427,2]
[404309875,1770054269285,6114.82355856,0.00010427,2]
[404309876,1770054269308,6114.82355856,0.00010427,2]
[404309877,1770054269330,6114.82355856,0.00010427,2]
[404309878,1770054269354,6114.82355856,0.00010427,2]
[404309879,1770054269376,6114.82355856,0.00010427,2]
[404309880,1770054269399,6114.82355856,0.00010427,2]
[404309881,1770054269421,6114.82355856,0.00010427,2]
[404309882,1770054269757,-426.50727471,0.00010427,2]
[404309883,1770054271243,-306.0443971,0.00010427,2]
[404309884,1770054275012,-431.94414854,0.00010427,2]
[404309885,1770054275393,-4700.01,0.00010427,2]
[404309886,1770054275482,-5000.01,0.00010427,2]
[404309887,1770054275589,-5000.01,0.00010427,2]
[404309888,1770054275695,-5000.01,0.00010427,2]
[404309889,1770054276479,-429.11018208,0.00010427,2]
[404309890,1770054277225,-5000.01,0.00010427,2]
[404309891,1770054277325,-5000.01,0.00010427,2]
[404309892,1770054277451,-5000.01,0.00010427,2]
[404309893,1770054277554,-5000.01,0.00010427,2]
[404309894,1770054277651,-5000.01,0.00010427,2]
[404309895,1770054277768,-5000.01,0.00010427,2]
[404309896,1770054279313,-854.85880908,0.00010427,2]
[404309897,1770054279508,-3382.47808016,0.00010427,2]
[404309898,1770054279565,-10000.01,0.00010427,2]
[404309899,1770054279693,-10000.01,0.00010427,2]
[404309900,1770054279844,-10000.01,0.00010427,2]
[404309901,1770054279979,-10000.01,0.00010427,2]
[404309902,1770054280416,-10000.01,0.00010427,2]
[404309903,1770054280524,-10000.01,0.00010427,2]
[404309904,1770054280669,-10000.01,0.00010427,2]
[404309905,1770054280814,-10000.01,0.00010427,2]
[404309906,1770054280841,-161.0,0.00010427,2]
[404309907,1770054280958,-10000.01,0.00010427,2]
[404309908,1770054282277,-202.00140077,0.00010427,2]
[404309909,1770054283247,-5000.01,0.00010427,2]
[404309910,1770054283419,-5000.01,0.00010427,2]
[404309911,1770054283522,-5000.01,0.00010427,2]
[404309912,1770054283634,-5000.01,0.00010427,2]
[404309913,1770054285259,-500.0,0.00010427,2]
[404309914,1770054286390,-5000.01,0.00010427,2]
[404309915,1770054286571,-5000.01,0.00010427,2]
[404309916,1770054286665,-5000.01,0.00010427,2]
[404309917,1770054286706,-852.41999983,0.00010427,2]
[404309918,1770054286799,-5000.01,0.00010427,2]
[404309919,1770054286934,-5000.01,0.00010427,2]
[404309920,1770054287684,-5000.01,0.00010427,2]
[404309921,1770054288509,-10000.01,0.00010427,2]
[404309922,1770054289313,-5000.01,0.00010427,2]
[404309923,1770054289429,-5000.01,0.00010427,2]
[404309924,1770054289487,-10000.01,0.00010427,2]
[404309925,1770054289621,-10000.01,0.00010427,2]
[404309926,1770054289718,-10000.01,0.00010427,2]
[404309927,1770054289755,-500.0,0.00010427,2]
[404309928,1770054289863,-10000.01,0.00010427,2]
[404309929,1770054289878,-5000.01,0.00010427,2]
[404309930,1770054289971,-10000.01,0.00010427,2]
[404309931,1770054290020,-5000.01,0.00010427,2]
[404309932,1770054290089,-10000.01,0.00010427,2]
[404309933,1770054290250,-10000.01,0.00010427,2]
[404309934,1770054290355,-10000.01,0.00010427,2]
[404309935,1770054290475,-10000.01,0.00010427,2]
[404309936,1770054291805,-362.88705281,0.00010427,2]
[404309937,1770054292467,-5000.01,0.00010427,2]
[404309938,1770054293460,-5000.01,0.00010427,2]
[404309939,1770054293583,-5000.01,0.00010427,2]
[404309940,1770054293711,-5000.01,0.00010427,2]
[404309941,1770054293834,-5000.01,0.00010427,2]
[404309942,1770054293946,-313.35017007,0.00010427,2]
[404309943,1770054293983,-5000.01,0.00010427,2]
[404309944,1770054294935,5531.0,0.000127,5]
[404309945,1770054295340,-5000.01,0.00010427,2]
[404309946,1770054295440,-305.00289925,0.00010427,2]
[404309947,1770054295474,-4390.0042015,0.00010427,2]
[404309948,1770054295516,-220.08765661,0.00010427,2]
[404309949,1770054295589,-5000.01,0.00010427,2]
[404309950,1770054297033,-300.0,0.00010427,2]
[404309951,1770054298366,-5000.01,0.00010427,2]
[404309952,1770054298488,-5000.01,0.00010427,2]
[404309953,1770054298582,-4322.90986851,0.00010427,2]
[404309954,1770054298625,-5.37222858,0.00010427,2]
[404309955,1770054301459,300.0,0.00010426,2]
[404309956,1770054301504,1200.0,0.00010426,2]
[404309957,1770054301889,300.0,0.00010426,2]
[404309958,1770054302408,4700.01,0.00010375,2]
[404309959,1770054302431,652.405326,0.00010375,2]
[404309960,1770054304577,429.39178028,0.00010427,2]
[404309961,1770054309580,-782.19838807,0.00011016,2]
[404309962,1770054309611,-4167.47377388,0.00011016,2]
[404309963,1770054309663,-100.6656761,0.00011016,2]
[404309964,1770054309698,-759.60162771,0.00011016,2]
[404309965,1770054309725,-668.60129719,0.00011016,2]
[404309966,1770054309752,-500.0,0.00011066,2]
[404309967,1770054309780,-340.1390173,0.00011115,2]
[404309968,1770054309808,-150.0,0.00011115,2]
[404309969,1770054309837,-300.0,0.00011115,2]
[404309970,1770054320404,500.0,0.00011115,2]
[404309971,1770054320448,500.0,0.00011115,2]
[404309972,1770054320490,500.0,0.00011115,2]
[404309973,1770054320588,500.0,0.00011115,2]
[404309974,1770054320637,500.0,0.00011115,2]
[404309975,1770054320675,500.0,0.00011115,2]
[404309976,1770054320721,500.0,0.00011115,2]
[404309977,1770054320769,500.0,0.00011115,2]
[404309978,1770054320809,500.0,0.00011115,2]
[404309979,1770054320852,63.3261156,0.00011115,2]
[404309980,1770054320877,436.6738844,0.00011115,2]
[404309981,1770054320923,500.0,0.00011115,2]
[404309982,1770054320968,500.0,0.00011115,2]
[404309983,1770054321017,500.0,0.00011115,2]
[404309984,1770054321059,500.0,0.00011115,2]
[404309985,1770054321103,500.0,0.00011115,2]
[404309986,1770054321154,500.0,0.00011115,2]
[404309987,1770054321201,500.0,0.00011115,2]
[404309988,1770054321247,500.0,0.00011115,2]
[404309989,1770054321296,500.0,0.00011115,2]
[404309990,1770054321348,500.0,0.00011115,2]
[404309991,1770054321390,500.0,0.00011115,2]
[404309992,1770054321440,500.0,0.00011115,2]
[404309993,1770054321477,500.0,0.00011115,2]
[404309994,1770054321526,500.0,0.00011115,2]
[404309995,1770054321577,500.0,0.00011115,2]
[404309996,1770054321618,500.0,0.00011115,2]
[404309997,1770054321661,500.0,0.00011115,2]
[404309998,1770054321705,500.0,0.00011115,2]
[404309999,1770054321752,500.0,0.00011115,2]
[404310000,1770054321816,63.3361156,0.00011115,2]
[404310001,1770054321844,436.6638844,0.00011115,2]
[404310002,1770054321884,500.0,0.00011115,2]
[404310003,1770054321924,500.0,0.00011115,2]
[404310004,1770054321964,500.0,0.00011115,2]
[404310005,1770054322008,534.93343418,0.00011115,2]
[404310006,1770054322054,500.0,0.00011115,2]
[404310007,1770054326844,5531.0,0.000126,5]
[404310008,1770054330864,7028.41268142,0.00010427,2]
[404310009,1770054331104,8676.40950168,0.00010427,2]
[404310010,1770054344739,500.0,0.00011115,2]
[404310011,1770054344788,500.0,0.00011115,2]
[404310012,1770054344832,323.60049832,0.00011115,2]
[404310013,1770054344859,176.39950168,0.00011115,2]
[404310014,1770054358384,5531.0,0.000126,5]
[404310015,1770054359511,339.65097429,0.00011115,2]
[404310016,1770054361832,300.0,0.00011115,2]
[404310017,1770054367239,500.0,0.00011088,2]
[404310018,1770054368241,150.0,0.00011088,2]
[404310019,1770054368958,500.0,0.00011115,2]
[404310020,1770054369032,500.0,0.00011115,2]
[404310021,1770054369177,500.0,0.00011115,2]
[404310022,1770054369234,272.66188585,0.00011115,2]
[404310023,1770054370347,417.72240687,0.00011016,2]
[404310024,1770054370498,151.0,0.00011113,2]
[404310025,1770054372826,178.0,0.00011005,2]
[404310026,1770054390010,1440.06692232,0.000125,5]
[404310027,1770054390035,910.0,0.000125,5]
[404310028,1770054390060,3180.93307768,0.000125,5]
[404310029,1770054416215,304.60692626,0.00011115,2]
[404310030,1770054420889,4607.51123156,0.00011016,2]
[404310031,1770054422099,300.0,0.00011115,2]
[404310032,1770054422144,5531.0,0.000125,5]
[404310033,1770054423940,802.45707349,0.00011016,2]
[404310034,1770054423963,669.13592651,0.00011016,2]
[404310035,1770054434126,9330.87407349,0.00011099,2]
[404310036,1770054434149,10000.01,0.00011099,2]
[404310037,1770054434174,6738.78951523,0.00011099,2]
[404310038,1770054435173,500.0,0.00017,30]
[404310039,1770054435497,992.61061336,0.00017,30]
[404310040,1770054435736,445.73419814,0.00011016,2]
[404310041,1770054436238,2500.0,0.00011016,2]
[404310042,1770054440028,221.85498655,0.00011016,2]
[404310043,1770054448469,765.61839249,0.00017,30]
[404310044,1770054451125,93.63130008,0.000105,3]
[404310045,1770054451148,4206.36869992,0.000105,3]
[404310046,1770054451471,5793.64130008,0.00011016,2]
[404310047,1770054451495,1423.76467187,0.00011016,2]
[404310048,1770054453379,8576.24532813,0.000106,3]
[404310049,1770054453403,123.75467187,0.000106,3]
[404310050,1770054453530,5531.0,0.000124,5]
[404310051,1770054455359,9876.25532813,0.000107,3]
[404310052,1770054455384,3223.74467187,0.000107,3]
[404310053,1770054457448,6776.26532813,0.000108,3]
[404310054,1770054457480,10000.01,0.000108,3]
[404310055,1770054457507,723.72467187,0.000108,3]
[404310056,1770054459574,9276.28532813,0.000109,3]
[404310057,1770054459603,5000.01,0.000109,3]
[404310058,1770054459631,5000.01,0.000109,3]
[404310059,1770054459655,2623.69467187,0.000109,3]
[404310060,1770054481946,150.0,0.00011115,2]
[404310061,1770054482023,300.0,0.00011115,2]
[404310062,1770054482768,300.0,0.00011115,2]
[404310063,1770054485444,5531.0,0.000125,5]
[404310064,1770054492158,151.0,0.00011113,2]
[404310065,1770054506471,362.54018819,0.00011016,2]
[404310066,1770054507201,1200.0,0.00011115,2]
[404310067,1770054517058,5531.0,0.000125,5]
[404310068,1770054524019,7536.46981181,0.00011016,2]
[404310069,1770054524041,2463.53018819,0.00011016,2]
[404310070,1770054524194,2922.58666302,0.00011016,2]
[404310071,1770054536861,2922.58666302,0.00011016,2]
[404310072,1770054541239,1691.30648577,0.00011016,2]
[404310073,1770054541262,1380.36766859,0.00011016,2]
[404310074,1770054541810,300.0,0.00011115,2]
[404310075,1770054548582,5531.0,0.000124,5]
[404310076,1770054559978,948.90299507,0.00011106,2]
[404310077,1770054563394,221.85498655,0.00011016,2]
[404310078,1770054566032,297.15613208,0.00011016,2]
[404310079,1770054569683,500.0,0.00011088,2]
[404310080,1770054570460,150.0,0.00011088,2]
[404310081,1770054574237,6201.72821771,0.00011099,2]
[404310082,1770054574259,10000.01,0.00011099,2]
[404310083,1770054574280,10000.01,0.00011099,2]
[404310084,1770054574302,10000.01,0.00011099,2]
[404310085,1770054574322,5519.45710608,0.00011099,2]
[404310086,1770054579308,4480.55289392,0.00011099,2]
[404310087,1770054579330,10000.01,0.00011099,2]
[404310088,1770054579355,10000.01,0.00011099,2]
[404310089,1770054579376,5000.01,0.00011099,2]
[404310090,1770054579396,5000.01,0.00011099,2]
[404310091,1770054579424,7240.62242982,0.00011099,2]
[404310092,1770054580288,5531.0,0.000124,5]
[404310093,1770054591067,1207.75956583,0.00011016,2]
[404310094,1770054600351,1551.62800435,0.00011016,2]
[404310095,1770054600372,948.37199565,0.00011016,2]
[404310096,1770054601558,1200.0,0.00011115,2]
[404310097,1770054611648,176.86620538,0.00011106,2]
[404310098,1770054611990,151.0,0.00011113,2]
[404310099,1770054612037,5531.0,0.000124,5]
[404310100,1770054612550,172.3355615,0.00010448,2]
[404310105,1770054631348,-16135.0224,0.00011116,2]
[404310106,1770054631416,7351.43623747,0.00011016,2]
[404310107,1770054631438,10000.01,0.00011016,2]
[404310108,1770054631460,10000.01,0.00011016,2]
[404310109,1770054631481,10000.01,0.00011016,2]
[404310110,1770054631502,10000.01,0.00011016,2]
[404310111,1770054631524,10000.01,0.00011016,2]
[404310124,1770054631837,10000.01,0.00011016,2]
[404310127,1770054631860,10000.01,0.00011016,2]
[404310131,1770054631886,10000.01,0.00011016,2]
[404310134,1770054631908,10000.01,0.00011016,2]
[404310137,1770054631925,-902648.47376253,0.00011016,2]
[404310139,1770054631934,-2649538.455793,0.00011116,2]
[404310141,1770054631945,-5495.88427723,0.00011116,2]
[404310144,1770054631957,-5135.0,0.00011116,2]
[404310146,1770054631973,-10070.19314842,0.00011116,2]
[404310148,1770054631984,-10807.343043,0.00011116,2]
[404310151,1770054631995,-396.25,0.00011116,2]
[404310153,1770054632007,-1148.78266955,0.00011116,2]
[404310155,1770054632019,-1914.10181639,0.00011116,2]
[404310157,1770054632030,-384.88090561,0.00011116,2]
[404310694,1770054637325,-2053.64958982,0.00011116,2]
[404310697,1770054637337,-637777.47727656,0.00011116,2]
[404310699,1770054637349,-1000.0,0.00011116,2]
[404310701,1770054637359,-6725.8362,0.00011116,2]
[404310703,1770054637370,-500.0,0.00011116,2]
[404310705,1770054637381,-6799.4482,0.00011116,2]
[404310707,1770054637390,-195.0,0.00011116,2]
[404310709,1770054637400,-500.0,0.00011116,2]
[404310711,1770054637410,-195.0,0.00011116,2]
[404310713,1770054637420,-250.0,0.00011116,2]
[404310715,1770054637429,-195.0,0.00011116,2]
[404310717,1770054637439,-300.0,0.00011116,2]
[404310719,1770054637448,-500.0,0.00011116,2]
[404310721,1770054637457,-283.67074019,0.00011116,2]
[404310723,1770054637467,-241.0,0.00011116,2]
[404310725,1770054637476,-334.83713164,0.00011119,2]
[404310727,1770054637485,-26069.67358868,0.00011123,2]
[404310729,1770054637495,-300.0,0.00011131,2]
[404310731,1770054637504,-300.0,0.00011131,2]
[404310732,1770054637513,-423.12755354,0.00011131,2]
[404310733,1770054637523,-500.0,0.00011143,2]
[404310734,1770054637532,-41721.21532374,0.00011166,2]
[404310735,1770054637541,-2531.9286,0.00011178,2]
[404310736,1770054637551,-246.16868908,0.00011198,2]
[404310737,1770054637560,-176.86620538,0.00011206,2]
[404310739,1770054637569,-151.0,0.00011213,2]
[404310741,1770054637578,-526.22237984,0.00011216,2]
[404310743,1770054637588,-151.0,0.00011216,2]
[404310745,1770054637597,-151.0,0.00011216,2]
[404310747,1770054637606,-151.0,0.00011216,2]
[404310749,1770054637615,-151.0,0.00011216,2]
[404310751,1770054637625,-151.0,0.00011216,2]
[404310753,1770054637634,-151.0,0.00011216,2]
[404310755,1770054637643,-151.0,0.00011216,2]
[404310757,1770054637653,-151.0,0.00011216,2]
[404310759,1770054637663,-151.0,0.00011216,2]
[404310761,1770054637671,-151.0,0.00011216,2]
[404310763,1770054637680,-151.0,0.00011216,2]
[404310765,1770054637690,-151.0,0.00011216,2]
[404310767,1770054637699,-200.0,0.00011216,2]
[404310768,1770054637708,-151.0,0.00011216,2]
[404310771,1770054637718,-151.0,0.00011216,2]
[404310774,1770054637737,-151.0,0.00011216,2]
[404310776,1770054637746,-151.0,0.00011216,2]
[404310778,1770054637756,-151.0,0.00011216,2]
[404310780,1770054637765,-151.0,0.00011216,2]
[404310782,1770054637775,-151.0,0.00011216,2]
[404310784,1770054637785,-151.0,0.00011216,2]
[404310786,1770054637794,-151.0,0.00011216,2]
[404310788,1770054637804,-151.0,0.00011216,2]
[404310790,1770054637813,-151.0,0.00011216,2]
[404310792,1770054637822,-151.0,0.00011216,2]
[404310794,1770054637832,-151.0,0.00011216,2]
[404310796,1770054637842,-151.0,0.00011216,2]
[404310798,1770054637851,-151.0,0.00011216,2]
[404310800,1770054637861,-151.0,0.00011216,2]
[404310802,1770054637871,-151.0,0.00011216,2]
[404310804,1770054637881,-151.0,0.00011216,2]
[404310805,1770054637891,-151.0,0.00011216,2]
[404310807,1770054637900,-500.0,0.00011216,2]
[404310809,1770054637910,-500.0,0.00011216,2]
[404310811,1770054637919,-500.0,0.00011216,2]
[404310813,1770054637928,-500.0,0.00011216,2]
[404310815,1770054637938,-500.0,0.00011216,2]
[404310817,1770054637947,-500.0,0.00011216,2]
[404310819,1770054637956,-500.0,0.00011216,2]
[404310821,1770054637966,-500.0,0.00011216,2]
[404310823,1770054637975,-500.0,0.00011216,2]
[404310825,1770054637984,-500.0,0.00011216,2]
[404310827,1770054637994,-500.0,0.00011216,2]
[404310829,1770054638004,-500.0,0.00011216,2]
[404310831,1770054638014,-500.0,0.00011216,2]
[404310833,1770054638023,-500.0,0.00011216,2]
[404310835,1770054638033,-500.0,0.00011216,2]
[404310837,1770054638043,-500.0,0.00011216,2]
[404310838,1770054638052,-500.0,0.00011216,2]
[404310840,1770054638062,-500.0,0.00011216,2]
[404310842,1770054638071,-500.0,0.00011216,2]
[404310844,1770054638082,-500.0,0.00011216,2]
[404310846,1770054638091,-500.0,0.00011216,2]
[404310848,1770054638100,-500.0,0.00011216,2]
[404310850,1770054638109,-200.0,0.00011216,2]
[404310852,1770054638119,-500.0,0.00011216,2]
[404310854,1770054638128,-33288.2505,0.00011216,2]
[404310856,1770054638138,-361.4994,0.00011216,2]
[404310858,1770054638147,-308.0088,0.00011216,2]
[404310860,1770054638158,-9999.99,0.00011216,2]
[404310862,1770054638167,-1553.29,0.00011216,2]
[404310864,1770054638177,-9999.99,0.00011216,2]
[404310866,1770054638186,-999.99,0.00011216,2]
[404310868,1770054638195,-9156.55,0.00011216,2]
[404310871,1770054638206,-260706.89,0.00011216,2]
[404310873,1770054638215,-1609.62,0.00011216,2]
[404310875,1770054638224,-3185.25,0.00011216,2]
[404310876,1770054638233,-299.99,0.00011216,2]
[404310878,1770054638243,-150.99,0.00011216,2]
[404310880,1770054638252,-9999.99,0.00011216,2]
[404310882,1770054638262,-4999.99,0.00011216,2]
[404310885,1770054638276,-499.99,0.00011216,2]
[404310887,1770054638287,-1539.28,0.00011216,2]
[404310889,1770054638298,-2979.54,0.00011216,2]
[404310891,1770054638308,-1470.33,0.00011216,2]
[404310893,1770054638317,-9999.99,0.00011216,2]
[404310895,1770054638327,-14009.2,0.00011216,2]
[404310897,1770054638337,-24463.4,0.00011216,2]
[404310899,1770054638347,-1182.49,0.00011216,2]
[404310901,1770054638359,-150.99,0.00011216,2]
[404310903,1770054638369,-14610.22,0.00011216,2]
[404310905,1770054638379,-7121.68,0.00011216,2]
[404310907,1770054638388,-15166.71,0.00011216,2]
[404310909,1770054638398,-9999.99,0.00011216,2]
[404310912,1770054638409,-348.93,0.00011216,2]
[404310914,1770054638419,-26069.67358868,0.00011231,2]
[404310916,1770054638430,-14428.57,0.00011233,2]
[404310918,1770054638439,-444.02,0.0001124,2]
[404310920,1770054638449,-41721.21532374,0.00011241,2]
[404310922,1770054638459,-500.0,0.00011243,2]
[404310924,1770054638469,-444.02,0.00011269,2]
[404310926,1770054638479,-444.02,0.00011298,2]
[404310928,1770054638489,-41721.21532374,0.00011316,2]
[404310930,1770054638498,-444.02,0.00011327,2]
[404310931,1770054638508,-26069.67358868,0.00011338,2]
[404310932,1770054638518,-1375.0,0.00011339,2]
[404310933,1770054638528,-174.0,0.00011339,2]
[404310934,1770054638537,-444.02,0.00011357,2]
[404310935,1770054638547,-294.0,0.00011361,2]
[404310936,1770054638557,-488.0,0.00011361,2]
[404310938,1770054638567,-365.0,0.00011364,2]
[404310940,1770054638576,-325.0,0.00011383,2]
[404310942,1770054638585,-1714.0,0.00011384,2]
[404310944,1770054638595,-1124.0,0.00011384,2]
[404310946,1770054638605,-444.02,0.00011386,2]
[404310948,1770054638615,-41721.21532374,0.00011391,2]
[404310950,1770054638625,-307.0,0.00011406,2]
[404310952,1770054638634,-404.0,0.00011406,2]
[404310954,1770054638644,-181.0,0.00011407,2]
[404310956,1770054638655,-500.0,0.00011414,2]
[404310958,1770054638669,-159.52608092,0.00011414,2]
[404310960,1770054638680,-1864.0,0.00011414,2]
[404310962,1770054638690,-500.0,0.00011414,2]
[404310965,1770054638700,-806.0,0.00011414,2]
[404310966,1770054638710,-500.0,0.00011414,2]
[404310968,1770054638720,-500.0,0.00011414,2]
[404310970,1770054638730,-500.0,0.00011414,2]
[404310972,1770054638740,-500.0,0.00011414,2]
[404310974,1770054638750,-500.0,0.00011414,2]
[404310976,1770054638760,-150.0,0.00011414,2]
[404310978,1770054638770,-928.0,0.00011414,2]
[404310980,1770054638780,-546.0,0.00011414,2]
[404310982,1770054638790,-150.0,0.00011414,2]
[404310983,1770054638800,-444.02,0.00011415,2]
[404310984,1770054638810,-1188.0,0.00011429,2]
[404310985,1770054638820,-751.0,0.00011429,2]
[404310986,1770054638830,-444.02,0.00011444,2]
[404310987,1770054638840,-26069.67358868,0.00011446,2]
[404310988,1770054638849,-1167.0,0.00011452,2]
[404310989,1770054638859,-871.0,0.00011452,2]
[404310991,1770054638869,-41721.21532374,0.00011466,2]
[404310993,1770054638879,-500.0,0.00011469,2]
[404310995,1770054638894,-1864.0,0.00011469,2]
[404310997,1770054638903,-504.1991344,0.00011469,2]
[404310999,1770054638914,-806.0,0.00011469,2]
[404311001,1770054638924,-500.0,0.00011469,2]
[404311003,1770054638934,-500.0,0.00011469,2]
[404311005,1770054638945,-500.0,0.00011469,2]
[404311007,1770054638955,-500.0,0.00011469,2]
[404311009,1770054638964,-928.0,0.00011469,2]
[404311011,1770054638974,-546.0,0.00011469,2]
[404311013,1770054638984,-500.0,0.00011469,2]
[404311015,1770054638994,-444.02,0.00011474,2]
[404311017,1770054639005,-931.0,0.00011474,2]
[404311019,1770054639015,-1081.0,0.00011475,2]
[404311021,1770054639026,-1282.0,0.00011497,2]
[404311023,1770054639041,-444.02,0.00011503,2]
[404311025,1770054639051,-500.0,0.00011517,2]
[404311027,1770054639062,-257.0,0.0001152,2]
[404311029,1770054639073,-500.0,0.00011524,2]
[404311031,1770054639084,-1864.0,0.00011524,2]
[404311033,1770054639094,-806.0,0.00011524,2]
[404311035,1770054639104,-500.0,0.00011524,2]
[404311038,1770054639115,-500.0,0.00011524,2]
[404311040,1770054639125,-500.0,0.00011524,2]
[404311042,1770054639136,-203.22250167,0.00011524,2]
[404311044,1770054639146,-928.0,0.00011524,2]
[404311047,1770054639156,-546.0,0.00011524,2]
[404311049,1770054639170,-500.0,0.00011524,2]